bitfinex/quotes_BTCUSD_20260311
["timestamp","ask_amount","ask_price","bid_price","bid_amount"]
[1773215195282,0.07187111,69569.0,69555.0,0.00638216]
[1773215195612,0.00071899,69558.0,69554.0,0.00116]
[1773215195926,0.04112551,69568.0,69554.0,0.00116]
[1773215197133,0.07209035,69570.0,69558.0,0.04962808]
[1773215197480,0.00022001,69570.0,69558.0,0.04962808]
[1773215197684,0.03628965,69589.0,69561.0,0.00635729]
[1773215197685,0.07186192,69578.0,69561.0,0.00635729]
[1773215197938,0.07208338,69577.0,69563.0,0.00635729]
[1773215198808,0.07208338,69577.0,69562.0,0.00116]
[1773215199009,0.07186489,69575.0,69563.0,0.07287729]
[1773215199209,0.03979688,69574.0,69563.0,0.07287729]
[1773215199531,0.03979688,69574.0,69563.0,0.07387729]
[1773215199893,0.03979688,69574.0,69563.0,0.07287729]
[1773215200289,0.03979688,69574.0,69563.0,0.07387729]
[1773215200922,0.03979688,69574.0,69563.0,0.07287729]
[1773215201141,0.03979688,69574.0,69563.0,0.07387729]
[1773215201340,0.00022001,69568.0,69563.0,0.07287729]
[1773215201576,0.00022001,69568.0,69563.0,0.07187729]
[1773215201785,0.00022001,69568.0,69564.0,0.0062567]
[1773215202207,0.00022001,69575.0,69564.0,0.0062567]
[1773215202358,0.00022001,69575.0,69563.0,0.07287729]
[1773215203082,0.00022001,69575.0,69564.0,0.001]
[1773215203280,0.00022001,69575.0,69565.0,0.07187522]
[1773215204385,0.07185983,69580.0,69566.0,0.00617302]
[1773215204847,0.07207809,69582.0,69566.0,0.00617302]
[1773215204848,0.00022001,69582.0,69566.0,0.00617302]
[1773215204968,0.00022001,69582.0,69565.0,0.07187522]
[1773215205315,0.00022001,69582.0,69566.0,0.00617302]
[1773215205547,0.00022001,69584.0,69566.0,0.00617302]
[1773215206500,0.00042251,69588.0,69571.0,0.00611763]
[1773215206724,0.00042251,69588.0,69573.0,0.00611763]
[1773215207492,0.00042251,69588.0,69575.0,0.00608951]
[1773215208716,0.00042251,69588.0,69575.0,0.00708951]
[1773215209002,0.00042251,69588.0,69576.0,0.00606112]
[1773215209435,0.00042251,69588.0,69577.0,0.07186282]
[1773215209654,0.00042251,69588.0,69577.0,0.07786362]
[1773215209963,0.00042251,69588.0,69578.0,0.0060008]
[1773215209964,0.00022001,69588.0,69578.0,0.0060008]
[1773215210970,0.00022001,69588.0,69579.0,0.00116]
[1773215211766,0.00022001,69588.0,69580.0,0.07185972]
[1773215212424,0.00022001,69588.0,69581.0,0.00597827]
[1773215212626,0.0003795,69600.0,69580.0,0.07185972]
[1773215212627,0.04121337,69599.0,69580.0,0.07185972]
[1773215212851,0.04121337,69597.0,69580.0,0.07301972]
[1773215213783,0.04121337,69595.0,69580.0,0.07301972]
[1773215214082,0.04121337,69595.0,69580.0,0.07401972]
[1773215214263,0.04121337,69595.0,69580.0,0.07996652]
[1773215214462,0.04121337,69595.0,69580.0,0.08096652]
[1773215214660,0.04121337,69595.0,69580.0,0.07996652]
[1773215214844,0.00116,69599.0,69580.0,0.07401972]
[1773215215043,0.07184026,69599.0,69581.0,0.00644778]
[1773215215883,0.113432,69600.0,69583.0,0.00641449]
[1773215216401,0.04159287,69600.0,69583.0,0.00641449]
[1773215216604,0.0003795,69600.0,69583.0,0.00641449]
[1773215216767,0.00022001,69595.0,69583.0,0.00641449]
[1773215216968,0.0003795,69600.0,69583.0,0.00641449]
[1773215217374,0.0003795,69600.0,69583.0,0.00569568]
[1773215217573,0.00022001,69603.0,69584.0,0.00116]
[1773215217795,0.00022001,69603.0,69586.0,0.07185353]
[1773215218121,0.00022001,69603.0,69586.0,0.07748251]
[1773215218311,0.04143338,69602.0,69586.0,0.07748251]
[1773215218790,0.04143338,69602.0,69587.0,0.00116]
[1773215219191,0.04143338,69602.0,69588.0,0.00116]
[1773215219605,0.04143338,69602.0,69586.0,0.07848251]
[1773215219606,0.04143338,69602.0,69586.0,0.07285353]
[1773215219789,0.04143338,69602.0,69589.0,0.00116]
[1773215219992,0.04143338,69602.0,69588.0,0.07185146]
[1773215220208,0.04143338,69602.0,69589.0,0.00116]
[1773215220407,0.00022001,69602.0,69590.0,0.00116]
[1773215220634,0.00022001,69603.0,69590.0,0.00669765]
[1773215220899,0.00022001,69603.0,69591.0,0.00116]
[1773215221109,0.00022001,69603.0,69591.0,0.00669765]
[1773215221911,0.00022001,69603.0,69591.0,0.00116]
[1773215222119,0.00022001,69603.0,69592.0,0.07184733]
[1773215222283,0.17027254,69610.0,69592.0,0.07184733]
[1773215222284,0.17000715,69630.0,69592.0,0.07184733]
[1773215222479,0.00023,69650.0,69592.0,0.07184733]
[1773215222480,0.04121337,69645.0,69620.0,0.04955443]
[1773215222746,0.07179163,69646.0,69601.0,0.01195731]
[1773215222747,0.04121337,69628.0,69601.0,0.01195731]
[1773215222884,0.04121337,69628.0,69610.0,0.04955443]
[1773215223093,0.04237337,69628.0,69612.0,0.01195731]
[1773215223638,0.04237337,69628.0,69611.0,0.00116]
[1773215224143,0.04121337,69627.0,69612.0,0.001]
[1773215224340,0.04121337,69627.0,69613.0,0.00116]
[1773215224558,0.00022001,69616.0,69613.0,0.00116]
[1773215225691,0.00022001,69616.0,69613.0,0.04059125]
[1773215225868,0.04121337,69628.0,69613.0,0.04059125]
[1773215226269,0.04121337,69628.0,69614.0,0.07182463]
[1773215226431,0.04121337,69628.0,69618.0,0.04952429]
[1773215227474,0.07179472,69643.0,69618.0,0.04952429]
[1773215227650,0.04121337,69641.0,69619.0,0.00116]
[1773215227820,0.04121337,69646.0,69630.0,0.08895554]
[1773215228023,0.04121337,69646.0,69631.0,0.04059125]
[1773215228223,0.04121337,69646.0,69632.0,0.11123731]
[1773215228729,0.00116,69648.0,69632.0,0.11123731]
[1773215228934,0.04121337,69646.0,69632.0,0.11123731]
[1773215229451,0.04121337,69646.0,69635.0,0.04952429]
[1773215229650,0.04144337,69650.0,69633.0,0.03943125]
[1773215230169,0.04144337,69650.0,69634.0,0.071804]
[1773215230170,0.00023,69650.0,69634.0,0.071804]
[1773215230325,0.00023,69650.0,69641.0,0.03943125]
[1773215230524,0.00023,69650.0,69642.0,0.00116]
[1773215230771,0.04121337,69649.0,69634.0,0.071804]
[1773215230971,0.04121337,69649.0,69638.0,0.00116]
[1773215231525,0.00022001,69642.0,69638.0,0.00116]
[1773215232518,0.00022001,69642.0,69639.0,0.07179884]
[1773215232879,0.00022001,69642.0,69636.0,0.00116]
[1773215233401,0.00022001,69642.0,69634.0,0.07180329]
[1773215233608,0.00022001,69642.0,69636.0,0.00116]
[1773215233928,0.00022001,69642.0,69639.0,0.001]
[1773215234303,0.00022001,69642.0,69634.0,0.07296329]
[1773215234514,0.00022001,69642.0,69634.0,0.07396329]
[1773215234830,0.00022001,69642.0,69634.0,0.07280329]
[1773215234993,0.00022001,69642.0,69634.0,0.12424741]
[1773215235786,0.00022001,69642.0,69634.0,0.12324741]
[1773215236247,0.00022001,69642.0,69635.0,0.00116]
[1773215237040,0.00022001,69642.0,69636.0,0.07180194]
[1773215237240,0.00022001,69642.0,69635.0,0.07296282]
[1773215237458,0.00022001,69642.0,69634.0,0.07180329]
[1773215237625,0.00022001,69642.0,69635.0,0.00216]
[1773215237959,0.07201646,69642.0,69626.0,0.00116]
[1773215238140,0.00116,69641.0,69625.0,0.00116]
[1773215238524,0.00116,69641.0,69618.0,0.05028412]
[1773215238719,0.00116,69641.0,69620.0,0.05028412]
[1773215238940,0.07179781,69640.0,69621.0,0.07181741]
[1773215239143,0.07179781,69640.0,69634.0,0.001]
[1773215239343,0.07179781,69640.0,69625.0,0.00116]
[1773215239780,0.07295683,69641.0,69625.0,0.00116]
[1773215240147,0.00116,69641.0,69625.0,0.00116]
[1773215241036,0.00116,69641.0,69626.0,0.07181225]
[1773215242267,0.07295693,69641.0,69626.0,0.07181225]
[1773215242941,0.07295693,69641.0,69626.0,0.12209637]
[1773215244181,0.00116,69640.0,69626.0,0.12209637]
[1773215244884,0.00044298,69640.0,69626.0,0.12209637]
[1773215245783,0.07224129,69640.0,69625.0,0.07297225]
[1773215246000,0.04099544,69639.0,69625.0,0.07297225]
[1773215246990,0.04099544,69639.0,69626.0,0.04207556]
[1773215247791,0.04099544,69639.0,69627.0,0.07181122]
[1773215249726,0.04099544,69639.0,69627.0,0.07281122]
[1773215249924,0.04123207,69638.0,69623.0,0.00116]
[1773215250482,0.00022001,69641.0,69623.0,0.04323556]
[1773215250614,0.00116,69638.0,69623.0,0.04323556]
[1773215251664,0.00116,69638.0,69629.0,0.04207556]
[1773215251970,0.00022001,69641.0,69630.0,0.07180812]
[1773215252123,0.00022001,69641.0,69630.0,0.11388368]
[1773215253534,0.00022001,69641.0,69629.0,0.07296812]
[1773215253535,0.04115491,69640.0,69629.0,0.00116]
[1773215254123,0.07179884,69639.0,69629.0,0.00116]
[1773215255044,0.04113114,69637.0,69618.0,0.07202016]
[1773215255246,0.04113114,69629.0,69619.0,0.00116]
[1773215255453,0.04113114,69629.0,69618.0,0.07202042]
[1773215255454,0.00116,69632.0,69618.0,0.07318042]
[1773215255653,0.00116,69632.0,69619.0,0.04207556]
[1773215256079,0.00116,69632.0,69619.0,0.04323556]
[1773215256863,0.07296627,69632.0,69620.0,0.12132597]
[1773215257889,0.07296627,69632.0,69620.0,0.07181844]
[1773215258954,0.07296627,69632.0,69619.0,0.04323556]
[1773215259294,0.1140655,69632.0,69619.0,0.07297869]
[1773215259995,0.1133483,69632.0,69619.0,0.07297869]
[1773215261322,0.1133483,69632.0,69620.0,0.0002]
[1773215261693,0.07224907,69632.0,69620.0,0.04275257]
[1773215262861,0.07224907,69632.0,69620.0,0.04246748]
[1773215262862,5.088e-05,69631.0,69620.0,0.04246748]
[1773215263048,0.0004428,69632.0,69621.0,0.07181741]
[1773215264012,0.00015257,69631.0,69621.0,0.07181741]
[1773215264613,0.00015257,69631.0,69622.0,0.04255257]
[1773215265028,0.00015257,69631.0,69623.0,0.07181534]
[1773215265238,0.00022001,69641.0,69624.0,0.04255257]
[1773215265645,0.00022001,69641.0,69625.0,0.00116]
[1773215265846,0.00022001,69641.0,69626.0,0.04255257]
[1773215266462,0.07201699,69641.0,69626.0,0.04255257]
[1773215267015,0.07179884,69639.0,69622.0,0.11377771]
[1773215267217,0.0409697,69637.0,69622.0,0.00116]
[1773215269193,0.0409697,69637.0,69623.0,0.07181534]
[1773215269332,0.07180091,69637.0,69624.0,0.04255257]
[1773215269737,0.00116,69636.0,69624.0,0.04255257]
[1773215270146,0.07180091,69637.0,69624.0,0.04255257]
[1773215270353,0.00116,69636.0,69624.0,0.04255257]
[1773215270663,0.07180091,69637.0,69624.0,0.04255257]
[1773215270867,0.00116,69636.0,69624.0,0.04255257]
[1773215271389,0.00116,69636.0,69625.0,0.07181328]
[1773215274184,0.07296293,69636.0,69625.0,0.07181328]
[1773215275646,0.07224555,69636.0,69625.0,0.07181328]
[1773215275856,0.00044262,69636.0,69625.0,0.11433875]
[1773215276930,0.00044262,69636.0,69625.0,0.11453875]
[1773215277132,0.07224501,69636.0,69625.0,0.11453875]
[1773215277740,0.07180239,69636.0,69625.0,0.0002]
[1773215278055,0.07201681,69641.0,69626.0,0.04252547]
[1773215278212,0.00138001,69641.0,69626.0,0.04252547]
[1773215278398,0.00138001,69641.0,69625.0,0.11397771]
[1773215278399,0.07201693,69641.0,69629.0,0.11377771]
[1773215278601,0.00022001,69641.0,69631.0,0.04252547]
[1773215278899,0.0720171,69641.0,69630.0,0.00116]
[1773215279741,0.0720171,69641.0,69631.0,0.07180709]
[1773215280055,0.0720171,69641.0,69631.0,0.07280709]
[1773215280235,0.0720171,69641.0,69631.0,0.001]
[1773215280433,0.0720171,69641.0,69630.0,0.12247525]
[1773215281563,0.0720171,69641.0,69630.0,0.07296801]
[1773215283542,0.0720171,69641.0,69627.0,0.11377771]
[1773215283747,0.04047188,69639.0,69614.0,0.21319203]
[1773215283949,0.00116,69638.0,69620.0,0.07181842]
[1773215284172,0.07180194,69636.0,69622.0,0.07181637]
[1773215284454,0.07180194,69636.0,69623.0,0.04252547]
[1773215284653,0.00116,69635.0,69623.0,0.04272827]
[1773215285278,0.07180194,69636.0,69623.0,0.04272827]
[1773215285483,0.07296194,69636.0,69623.0,0.04272827]
[1773215285887,0.07296194,69636.0,69627.0,0.001]
[1773215286051,0.07179972,69639.0,69628.0,0.04252547]
[1773215286252,0.07295972,69639.0,69629.0,0.04252547]
[1773215286657,0.07179972,69639.0,69629.0,0.04252547]
[1773215286996,0.07179781,69640.0,69629.0,0.04252547]
[1773215287351,0.0720172,69641.0,69630.0,0.04950724]
[1773215287464,0.0720172,69641.0,69631.0,0.04252547]
[1773215288986,0.0720172,69641.0,69632.0,0.07180606]
[1773215289306,0.0720172,69641.0,69633.0,0.04252547]
[1773215289714,0.00022001,69649.0,69633.0,0.04252547]
[1773215289918,0.0013954,69666.0,69640.0,0.17066656]
[1773215290095,0.0002354,69666.0,69651.0,0.04252547]
[1773215290437,0.08300378,69674.0,69657.0,0.04252547]
[1773215290438,0.01124,69674.0,69657.0,0.04252547]
[1773215290731,0.01124,69674.0,69665.0,0.04252547]
[1773215290935,0.01124,69674.0,69666.0,0.07177102]
[1773215291185,0.01124,69674.0,69667.0,0.04252547]
[1773215291378,0.00116,69680.0,69667.0,0.04252547]
[1773215291589,0.00116,69680.0,69661.0,0.00116]
[1773215291878,0.00116,69680.0,69664.0,0.04252547]
[1773215292177,0.00116,69679.0,69664.0,0.04252547]
[1773215292331,0.00116,69679.0,69667.0,0.04352547]
[1773215292539,0.00116,69679.0,69667.0,0.04452547]
[1773215292739,0.00116,69678.0,69667.0,0.04252547]
[1773215293158,0.07175933,69678.0,69669.0,0.04252547]
[1773215293488,0.00116,69677.0,69669.0,0.04252547]
[1773215294319,0.07175828,69679.0,69669.0,0.04252547]
[1773215294438,0.00116,69679.0,69669.0,0.04252547]
[1773215294637,0.0123382,69682.0,69669.0,0.04252547]
[1773215295045,0.0123382,69682.0,69670.0,0.0717669]
[1773215295272,0.0123382,69682.0,69671.0,0.04240547]
[1773215295469,0.0123382,69682.0,69671.0,0.04228547]
[1773215295855,0.07290859,69688.0,69671.0,0.04228547]
[1773215296055,0.07174859,69688.0,69673.0,0.04252547]
[1773215296332,0.07196473,69691.0,69673.0,0.04252547]
[1773215296333,0.07196462,69691.0,69673.0,0.04252547]
[1773215296461,0.0002191,69691.0,69673.0,0.04252547]
[1773215296664,0.07196481,69691.0,69673.0,0.04252547]
[1773215296887,0.04185029,69688.0,69672.0,0.00116]
[1773215297088,0.04185029,69686.0,69672.0,0.00116]
[1773215297471,0.07175145,69685.0,69673.0,0.07176381]
[1773215298462,0.07175145,69685.0,69674.0,0.04252547]
[1773215298764,0.00022001,69682.0,69674.0,0.04252547]
[1773215299608,0.00022001,69682.0,69675.0,0.07176175]
[1773215299802,0.00022001,69682.0,69676.0,0.04567638]
[1773215300974,0.07196769,69689.0,69676.0,0.04567638]
[1773215301402,0.00116,69688.0,69676.0,0.04567638]
[1773215301921,0.04179521,69687.0,69671.0,0.11744215]
[1773215302075,0.04179521,69687.0,69672.0,0.04567638]
[1773215302277,0.00116,69686.0,69672.0,0.04567638]
[1773215302831,0.07174876,69688.0,69672.0,0.04567638]
[1773215303134,0.00116,69685.0,69672.0,0.04567638]
[1773215304286,0.07291178,69685.0,69673.0,0.07176381]
[1773215304528,0.07291178,69685.0,69674.0,0.04567638]
[1773215304940,0.07291178,69685.0,69674.0,0.04372638]
[1773215305237,0.00116,69684.0,69674.0,0.04372638]
[1773215306178,0.00022001,69686.0,69674.0,0.04372638]
[1773215306334,0.00116,69685.0,69675.0,0.07176175]
[1773215306547,0.00116,69685.0,69676.0,0.04567638]
[1773215307370,0.00022001,69686.0,69676.0,0.04567638]
[1773215307536,0.28455579,69735.0,69676.0,0.04567638]
[1773215307537,0.00022001,69700.0,69676.0,0.04567638]
[1773215307738,0.05673768,69720.0,69691.0,0.04567638]
[1773215307739,0.07195263,69703.0,69691.0,0.04567638]
[1773215308338,0.0002191,69703.0,69692.0,0.07174424]
[1773215308561,0.00116,69702.0,69693.0,0.04567638]
[1773215308970,0.00134,69702.0,69693.0,0.04567638]
[1773215309736,0.00134,69702.0,69689.0,0.07174424]
[1773215309737,0.0351319,69701.0,69676.0,0.04567638]
[1773215309958,0.0351319,69701.0,69677.0,0.04567638]
[1773215310575,0.07289601,69700.0,69681.0,0.04567638]
[1773215310777,0.00116,69699.0,69683.0,0.04567638]
[1773215310989,0.00116,69698.0,69683.0,0.04567638]
[1773215311189,0.07191601,69700.0,69683.0,0.04567638]
[1773215311397,0.00116,69699.0,69683.0,0.04567638]
[1773215311567,0.00116,69699.0,69689.0,0.04941533]
[1773215311767,0.00018,69699.0,69690.0,0.04567638]
[1773215312801,0.00012,69705.0,69692.0,0.04567638]
[1773215312953,0.00116,69704.0,69692.0,0.04567638]
[1773215313154,0.00012,69705.0,69692.0,0.04567638]
[1773215313496,0.00012,69705.0,69691.0,0.07174527]
[1773215313497,0.00012,69705.0,69696.0,0.04567638]
[1773215313720,0.07185113,69705.0,69691.0,0.07174527]
[1773215313922,0.07185113,69705.0,69688.0,0.07174741]
[1773215313923,0.00022001,69701.0,69688.0,0.07174741]
[1773215314117,0.00022001,69701.0,69687.0,0.04567638]
[1773215314118,0.03513044,69700.0,69687.0,0.071749]
[1773215314320,0.03513044,69700.0,69686.0,0.07174953]
[1773215314669,0.03513044,69700.0,69684.0,0.07175185]
[1773215314670,0.03507876,69698.0,69684.0,0.07175185]
[1773215314911,0.03507876,69696.0,69684.0,0.07175185]
[1773215315334,0.03507876,69696.0,69692.0,0.00048]
[1773215315540,0.03507876,69696.0,69684.0,0.07175185]
[1773215316334,0.00116,69697.0,69684.0,0.07175185]
[1773215316536,0.00116,69697.0,69684.0,0.11657609]
[1773215316922,0.07174012,69696.0,69676.0,0.07176072]
[1773215317121,0.03499212,69695.0,69677.0,0.04482424]
[1773215319445,0.07174218,69694.0,69679.0,0.04482424]
[1773215321133,0.03478236,69693.0,69675.0,0.07315122]
[1773215321617,0.07174424,69692.0,69675.0,0.07315122]
[1773215321819,0.0358891,69691.0,69676.0,0.07176072]
[1773215322022,0.0358891,69691.0,69674.0,0.0002]
[1773215322304,0.0358891,69691.0,69675.0,0.02436404]
[1773215322598,0.0358891,69691.0,69674.0,0.0002]
[1773215324085,0.03536762,69689.0,69674.0,0.0002]
[1773215324306,0.03536762,69689.0,69674.0,0.04502424]
[1773215324618,0.03536762,69689.0,69674.0,0.0002]
[1773215324822,0.03536762,69689.0,69675.0,0.04482424]
[1773215325642,0.0717463,69690.0,69675.0,0.04482424]
[1773215326008,0.00116,69689.0,69677.0,0.04482424]
[1773215326832,0.00116,69690.0,69677.0,0.04482424]
[1773215327048,0.07174574,69691.0,69677.0,0.04482424]
[1773215327217,0.07290574,69691.0,69677.0,0.04482424]
[1773215327400,0.07173704,69699.0,69677.0,0.04482424]
[1773215327606,0.00116,69694.0,69677.0,0.04582424]
[1773215327847,0.00116,69696.0,69677.0,0.04582424]
[1773215328048,0.07174115,69695.0,69679.0,0.04482424]
[1773215328225,0.07174115,69696.0,69679.0,0.04482424]
[1773215328430,0.00116,69694.0,69679.0,0.04482424]
[1773215328783,0.03509149,69693.0,69675.0,0.07196127]
[1773215328958,0.03509149,69693.0,69675.0,0.0002]
[1773215330149,0.07174424,69692.0,69675.0,0.0002]
[1773215330369,0.03498099,69691.0,69675.0,0.0002]
[1773215330732,0.03498099,69691.0,69680.0,0.00071756]
[1773215331356,0.03498099,69691.0,69675.0,0.0002]
[1773215331594,0.03498099,69691.0,69674.0,0.04441514]
[1773215332150,0.0717463,69690.0,69674.0,0.04441514]
[1773215332373,0.03494161,69689.0,69674.0,0.04441514]
[1773215332549,0.00116,69688.0,69674.0,0.04441514]
[1773215333398,0.03483646,69686.0,69668.0,0.00136]
[1773215333699,0.03483646,69686.0,69668.0,0.07312891]
[1773215333899,0.03483646,69686.0,69668.0,0.00136]
[1773215334049,0.07175145,69685.0,69668.0,0.0002]
[1773215334254,0.03483646,69684.0,69669.0,0.04421514]
[1773215334705,0.03483646,69684.0,69660.0,0.17200998]
[1773215334939,0.03483646,69684.0,69660.0,0.0002]
[1773215335261,0.03483646,69684.0,69661.0,0.04421514]
[1773215336384,0.03472682,69682.0,69663.0,0.04421514]
[1773215337002,0.07291351,69683.0,69664.0,0.03196611]
[1773215337003,0.07175351,69683.0,69664.0,0.03196611]
[1773215337205,0.00116,69682.0,69674.0,0.0002]
[1773215337630,0.00116,69681.0,69674.0,0.0002]
[1773215337841,0.07175351,69683.0,69674.0,0.0002]
[1773215338020,0.00116,69682.0,69674.0,0.0002]
[1773215338427,0.07175351,69684.0,69674.0,0.0002]
[1773215338658,0.00116,69683.0,69674.0,0.04441514]
[1773215340657,0.07175454,69682.0,69674.0,0.04441514]
[1773215341080,0.00116,69681.0,69674.0,0.04441514]
[1773215341795,0.00116,69680.0,69674.0,0.04441514]
[1773215342158,0.07175454,69682.0,69674.0,0.0002]
[1773215342361,0.00116,69681.0,69674.0,0.0002]
[1773215343099,0.0717566,69680.0,69674.0,0.0002]
[1773215343260,0.0717566,69680.0,69668.0,0.04421514]
[1773215343667,0.03428613,69679.0,69659.0,0.0014517]
[1773215344103,0.03428613,69679.0,69660.0,0.04441514]
[1773215344508,0.03428613,69679.0,69660.0,0.07197705]
[1773215344709,0.03428613,69679.0,69661.0,0.04421514]
[1773215345213,0.03428613,69679.0,69660.0,0.0002]
[1773215345214,0.03423204,69677.0,69660.0,0.0002]
[1773215345425,0.03423204,69677.0,69660.0,1e-08]
[1773215347152,0.07176072,69676.0,69660.0,1e-08]
[1773215347354,0.03529115,69675.0,69660.0,1e-08]
[1773215347556,0.03529115,69675.0,69661.0,0.04421514]
[1773215347557,0.00116,69675.0,69661.0,0.04421514]
[1773215347772,0.00116,69674.0,69661.0,0.04421514]
[1773215348469,0.00116,69673.0,69661.0,0.04421514]
[1773215348875,0.00116,69672.0,69661.0,0.04421514]
[1773215349228,0.07176278,69674.0,69661.0,0.04421514]
[1773215349437,0.07176278,69674.0,69663.0,0.04493288]
[1773215349661,0.07291635,69681.0,69665.0,0.04421514]
[1773215349868,0.07175635,69681.0,69665.0,0.04421514]
[1773215350081,0.001,69674.0,69665.0,0.04421514]
[1773215350500,0.001,69674.0,69663.0,0.00187774]
[1773215350714,0.00116,69676.0,69663.0,0.00071774]
[1773215350919,0.00116,69676.0,69664.0,0.04421514]
[1773215351115,0.00116,69675.0,69664.0,0.04421514]
[1773215351575,0.07176278,69674.0,69664.0,0.07177288]
[1773215351781,0.07176278,69674.0,69665.0,0.04421514]
[1773215352815,0.07176278,69674.0,69665.0,0.04521514]
[1773215353436,0.07175145,69685.0,69665.0,0.04521514]
[1773215353641,0.07175351,69683.0,69667.0,0.04421514]
[1773215353841,0.00022001,69679.0,69667.0,0.04421514]
[1773215354012,0.00116,69678.0,69667.0,0.04421514]
[1773215354417,0.00022001,69679.0,69667.0,0.04421514]
[1773215354621,0.00116,69678.0,69667.0,0.04421514]
[1773215355004,0.00116,69678.0,69667.0,0.04521514]
[1773215355406,0.00116,69678.0,69667.0,0.04421514]
[1773215355606,0.07175969,69677.0,69667.0,0.07276951]
[1773215355799,0.07175969,69677.0,69668.0,0.04421514]
[1773215356801,0.07175969,69677.0,69663.0,0.00071774]
[1773215357012,0.07175969,69677.0,69663.0,0.07249124]
[1773215357190,0.07175969,69677.0,69663.0,0.11670638]
[1773215357415,0.07175969,69677.0,69664.0,0.04421514]
[1773215357821,0.07175969,69677.0,69668.0,0.04421514]
[1773215358837,0.02514309,69677.0,69668.0,0.04421514]
[1773215359038,0.02514309,69677.0,69668.0,0.04521514]
[1773215359268,0.02514309,69677.0,69668.0,0.04421514]
[1773215359482,0.07197899,69679.0,69668.0,0.04421514]
[1773215359686,0.07197899,69679.0,69668.0,0.04521514]
[1773215359894,0.07197899,69679.0,69670.0,0.04122855]
[1773215360090,0.07197091,69686.0,69670.0,0.04122855]
[1773215360294,0.07197069,69686.0,69670.0,0.04122855]
[1773215360556,0.07197069,69686.0,69670.0,0.21303853]
[1773215360705,0.07197069,69686.0,69670.0,0.04122855]
[1773215360919,0.07175032,69687.0,69670.0,0.04122855]
[1773215361114,0.00022001,69693.0,69670.0,0.04122855]
[1773215361115,0.00116,69691.0,69670.0,0.04122855]
[1773215361499,0.07174468,69692.0,69670.0,0.04122855]
[1773215361719,0.00116,69691.0,69680.0,0.09066585]
[1773215361978,0.0717463,69690.0,69680.0,0.16242236]
[1773215362182,0.0717463,69690.0,69680.0,0.11298506]
[1773215362385,0.0729063,69690.0,69680.0,0.16242236]
[1773215363149,0.0729063,69690.0,69680.0,0.09066585]
[1773215363351,0.0729063,69690.0,69680.0,0.04122855]
[1773215363548,0.00116,69689.0,69680.0,0.11298504]
[1773215363749,0.00116,69689.0,69680.0,0.16242234]
[1773215364046,0.07174836,69688.0,69680.0,0.09166585]
[1773215364363,0.07174836,69688.0,69680.0,0.09066585]
[1773215364760,0.07174836,69688.0,69680.0,0.001]
[1773215364934,0.07174836,69688.0,69676.0,0.00116]
[1773215365131,0.07174836,69688.0,69671.0,0.00116]
[1773215365132,0.04480368,69685.0,69671.0,0.00116]
[1773215366142,0.07175248,69684.0,69671.0,0.00116]
[1773215366379,0.00116,69683.0,69671.0,0.00116]
[1773215367998,0.04480368,69682.0,69671.0,0.00116]
[1773215368218,0.07175557,69681.0,69671.0,0.00116]
[1773215369172,0.07175557,69681.0,69671.0,0.07292584]
[1773215369705,0.11655925,69681.0,69671.0,0.00116]
[1773215370212,0.11655925,69681.0,69671.0,0.07292583]
[1773215370411,0.11655925,69681.0,69671.0,0.07304033]
[1773215370717,0.11655925,69681.0,69671.0,0.0012745]
[1773215370918,0.04480368,69680.0,69671.0,0.0012745]
[1773215371507,0.04480368,69680.0,69668.0,0.0003833]
[1773215372302,0.07175763,69679.0,69668.0,0.0003833]
[1773215372631,0.11656131,69679.0,69668.0,0.0003833]
[1773215374220,0.07175557,69681.0,69668.0,0.0003833]
[1773215374426,0.07175763,69679.0,69668.0,0.04161185]
[1773215375132,0.07175763,69679.0,69669.0,0.04122855]
[1773215375338,0.01109614,69678.0,69669.0,0.04122855]
[1773215376427,0.07175969,69677.0,69670.0,0.04122855]
[1773215377300,0.07175969,69677.0,69668.0,0.0003833]
[1773215377722,0.07175969,69677.0,69668.0,0.07215212]
[1773215377902,0.07175969,69677.0,69668.0,0.04161185]
[1773215378706,0.07175969,69677.0,69668.0,0.07215192]
[1773215378912,0.07175942,69678.0,69669.0,0.04122855]
[1773215379746,0.01109614,69676.0,69669.0,0.04122855]
[1773215381217,0.07176175,69675.0,69669.0,0.04122855]
[1773215383598,0.07291942,69678.0,69669.0,0.11299633]
[1773215383797,0.07291942,69678.0,69669.0,0.04122855]
[1773215384364,0.01109614,69674.0,69669.0,0.04122855]
[1773215384991,0.01109614,69674.0,69668.0,0.0003833]
[1773215385703,0.08285961,69674.0,69668.0,0.0003833]
[1773215386000,0.01109614,69674.0,69668.0,0.11409495]
[1773215386512,0.01109614,69674.0,69669.0,0.04194323]
[1773215390607,0.01109614,69674.0,69670.0,0.0457155]
[1773215393939,0.01109614,69674.0,69671.0,0.0457155]
[1773215396477,0.01109614,69674.0,69669.0,0.07176699]
[1773215396685,0.01109614,69674.0,69670.0,0.0457155]
[1773215397676,0.01109614,69674.0,69670.0,0.11748229]
[1773215399372,0.07176011,69677.0,69670.0,0.11748229]
[1773215400228,0.07176011,69677.0,69669.0,0.0717679]
[1773215400451,0.07176011,69677.0,69668.0,0.0003833]
[1773215400660,0.07176011,69677.0,69668.0,0.07215219]
[1773215401247,0.08285761,69676.0,69668.0,0.07215219]
[1773215401662,0.01109614,69676.0,69668.0,0.11786769]
[1773215401878,0.00022001,69680.0,69669.0,0.0457155]
[1773215402283,0.00022001,69680.0,69670.0,0.0494373]
[1773215402482,0.00022001,69680.0,69671.0,0.0457155]
[1773215402707,0.00022001,69680.0,69673.0,0.0457155]
[1773215402981,0.00022001,69683.0,69674.0,0.0457155]
[1773215403549,0.0717508,69686.0,69676.0,0.0457155]
[1773215403750,0.0717508,69686.0,69677.0,0.0457155]
[1773215405519,0.07196976,69687.0,69679.0,0.0457155]
[1773215405720,0.07196943,69687.0,69679.0,0.0457155]
[1773215407605,0.07196943,69687.0,69680.0,0.0717566]
[1773215407806,0.07196943,69687.0,69681.0,0.0457155]
[1773215408153,0.00022001,69686.0,69681.0,0.0457155]
[1773215408745,0.00022001,69686.0,69681.0,0.11747087]
[1773215409070,0.00022001,69686.0,69682.0,0.0457155]
[1773215410716,0.00022001,69686.0,69682.0,0.04556347]
[1773215411552,0.07197066,69686.0,69682.0,0.04556347]
[1773215412340,0.07197066,69686.0,69680.0,0.07175657]
[1773215412914,0.07197066,69686.0,69679.0,0.11747313]
[1773215413318,0.07197066,69686.0,69679.0,0.07175763]
[1773215413475,0.07197066,69686.0,69680.0,0.0457155]
[1773215414485,0.00022001,69686.0,69680.0,0.0457155]
[1773215415037,1e-08,69693.0,69682.0,0.0457155]
[1773215415193,1e-08,69693.0,69683.0,0.04943272]
[1773215415396,1e-08,69693.0,69684.0,0.0468755]
[1773215415624,0.07173511,69701.0,69684.0,0.0468755]
[1773215415625,0.00012,69705.0,69684.0,0.0468755]
[1773215415797,0.05673768,69720.0,69684.0,0.0468755]
[1773215415798,1e-08,69714.0,69696.0,0.0457155]